fUST/lending_fUST_20250626
["ID","MTS","AMOUNT","RATE_DAILY","PERIOD"]
[367837626,1750941058830,-460.0,0.00017808,2]
[367837627,1750941058839,-460.0,0.00017808,2]
[367837628,1750941058848,-471.26,0.00017808,2]
[367837629,1750941058858,-460.0,0.00017808,2]
[367837630,1750941058867,-460.0,0.00017808,2]
[367837631,1750941058876,-460.0,0.00017808,2]
[367837632,1750941058885,-460.0,0.00017808,2]
[367837633,1750941058895,-460.0,0.00017808,2]
[367837634,1750941058904,-460.0,0.00017808,2]
[367837635,1750941058913,-460.0,0.00017808,2]
[367837636,1750941058922,-460.0,0.00017808,2]
[367837637,1750941058931,-460.0,0.00017808,2]
[367837638,1750941058940,-803.0,0.00017808,2]
[367837639,1750941058951,-460.0,0.00017808,2]
[367837640,1750941058960,-460.0,0.00017808,2]
[367837641,1750941058969,-460.0,0.00017808,2]
[367837642,1750941058979,-566.19,0.00017808,2]
[367837643,1750941058988,-460.0,0.00017808,2]
[367837644,1750941058997,-460.0,0.00017808,2]
[367837645,1750941059006,-460.0,0.00017808,2]
[367837646,1750941059016,-531.21,0.00017808,2]
[367837647,1750941059025,-460.0,0.00017808,2]
[367837648,1750941059034,-586.58,0.00017808,2]
[367837649,1750941059045,-460.0,0.00017808,2]
[367837650,1750941059056,-460.0,0.00017808,2]
[367837651,1750941059065,-460.0,0.00017808,2]
[367837652,1750941059074,-460.0,0.00017808,2]
[367837653,1750941059083,-460.0,0.00017808,2]
[367837654,1750941059092,-355.9227494,0.00017808,2]
[367837655,1750941059101,-460.0,0.00017808,2]
[367837656,1750941059110,-1446.03,0.00017808,2]
[367837657,1750941059119,-1888.57,0.00017808,2]
[367837658,1750941059128,-460.0,0.00017808,2]
[367837659,1750941059138,-460.0,0.00017808,2]
[367837660,1750941059147,-460.0,0.00017808,2]
[367837661,1750941059157,-460.0,0.00017808,2]
[367837662,1750941059166,-2010.83,0.00017808,2]
[367837663,1750941059176,-460.0,0.00017808,2]
[367837664,1750941059185,-460.0,0.00017808,2]
[367837665,1750941059193,-460.0,0.00017808,2]
[367837666,1750941059204,-460.0,0.00017808,2]
[367837667,1750941059213,-706.02,0.00017808,2]
[367837668,1750941059223,-460.0,0.00017808,2]
[367837669,1750941059233,-460.0,0.00017808,2]
[367837670,1750941059243,-342.81463594,0.00017808,2]
[367837671,1750941059252,-947.82,0.00017808,2]
[367837672,1750941059261,-460.0,0.00017808,2]
[367837673,1750941059271,-686.64,0.00017808,2]
[367837674,1750941059280,-528.25,0.00017808,2]
[367837675,1750941059290,-460.0,0.00017808,2]
[367837676,1750941059300,-460.0,0.00017808,2]
[367837677,1750941059309,-460.0,0.00017808,2]
[367837678,1750941059318,-460.0,0.00017808,2]
[367837679,1750941059327,-630.9,0.00017808,2]
[367837680,1750941059337,-4731.44,0.00017808,2]
[367837681,1750941059347,-464.51,0.00017808,2]
[367837682,1750941059358,-719.52,0.00017808,2]
[367837683,1750941059367,-460.0,0.00017808,2]
[367837684,1750941059376,-806.15,0.00017808,2]
[367837685,1750941059385,-460.0,0.00017808,2]
[367837686,1750941059396,-460.0,0.00017808,2]
[367837687,1750941059406,-548.98,0.00017808,2]
[367837688,1750941059416,-460.0,0.00017808,2]
[367837689,1750941059425,-460.0,0.00017808,2]
[367837690,1750941059435,-460.0,0.00017808,2]
[367837691,1750941059444,-460.0,0.00017808,2]
[367837692,1750941059454,-5800.83,0.00017808,2]
[367837693,1750941059463,-692.44,0.00017808,2]
[367837694,1750941059473,-866.92,0.00017808,2]
[367837695,1750941059482,-460.0,0.00017808,2]
[367837696,1750941059491,-460.0,0.00017808,2]
[367837697,1750941059501,-2909.6,0.00017808,2]
[367837698,1750941059511,-517.95,0.00017808,2]
[367837699,1750941059520,-2686.11,0.00017808,2]
[367837700,1750941059531,-1363.41,0.00017808,2]
[367837701,1750941059540,-3716.07,0.00017808,2]
[367837702,1750941059551,-1046.42,0.00017808,2]
[367837703,1750941059560,-532.34,0.00017808,2]
[367837704,1750941059570,-790.12,0.00017808,2]
[367837705,1750941059579,-1720.1,0.00017808,2]
[367837706,1750941059589,-607.72,0.00017808,2]
[367837707,1750941059599,-460.0,0.00017808,2]
[367837708,1750941059608,-738.59,0.00017808,2]
[367837709,1750941059618,-683.98,0.00017808,2]
[367837710,1750941059627,-460.0,0.00017808,2]
[367837711,1750941059641,-460.0,0.00017808,2]
[367837712,1750941059651,-460.0,0.00017808,2]
[367837713,1750941059662,-460.0,0.00017808,2]
[367837714,1750941059671,-533.75,0.00017808,2]
[367837715,1750941059683,-1868.49,0.00017808,2]
[367837716,1750941059692,-1752.99,0.00017808,2]
[367837717,1750941059702,-460.0,0.00017808,2]
[367837718,1750941059712,-152.84,0.00017808,2]
[367837719,1750941059721,-761.74,0.00017808,2]
[367837720,1750941059730,-620.54,0.00017808,2]
[367837721,1750941059740,-460.0,0.00017808,2]
[367837722,1750941059750,-570.25,0.00017808,2]
[367837723,1750941059759,-222.28,0.00017808,2]
[367837724,1750941059769,-200.27166061,0.00017808,2]
[367837725,1750941059778,-460.0,0.00017808,2]
[367837726,1750941059788,-460.0,0.00017808,2]
[367837727,1750941059798,-1048.74,0.00017808,2]
[367837728,1750941059807,-259.15200348,0.00017808,2]
[367837729,1750941059815,-890.8,0.00017808,2]
[367837730,1750941059825,-2024.11,0.00017808,2]
[367837731,1750941059834,-641.16,0.00017808,2]
[367837732,1750941059844,-460.0,0.00017808,2]
[367837733,1750941059854,-753.25,0.00017808,2]
[367837734,1750941059863,-560.58,0.00017808,2]
[367837735,1750941059872,-1034.46,0.00017808,2]
[367837736,1750941059881,-510.97,0.00017808,2]
[367837737,1750941059890,-685.54,0.00017808,2]
[367837738,1750941059899,-594.59,0.00017808,2]
[367837739,1750941059909,-501.72,0.00017808,2]
[367837740,1750941059918,-743.6,0.00017808,2]
[367837741,1750941059927,-2173.59,0.00017808,2]
[367837742,1750941059937,-2150.76,0.00017808,2]
[367837743,1750941059947,-603.43,0.00017808,2]
[367837744,1750941059956,-530.21700918,0.00017808,2]
[367837745,1750941059965,-460.0,0.00017808,2]
[367837746,1750941059975,-460.0,0.00017808,2]
[367837747,1750941059984,-460.0,0.00017808,2]
[367837748,1750941059994,-594.3,0.00017808,2]
[367837749,1750941060003,-1345.47,0.00017808,2]
[367837750,1750941060012,-721.39,0.00017808,2]
[367837751,1750941060022,-460.0,0.00017808,2]
[367837752,1750941060032,-460.0,0.00017808,2]
[367837753,1750941060042,-1390.16,0.00017808,2]
[367837754,1750941060051,-885.25,0.00017808,2]
[367837755,1750941060061,-460.0,0.00017808,2]
[367837756,1750941060071,-460.0,0.00017808,2]
[367837757,1750941060080,-385.1,0.00017808,2]
[367837758,1750941060089,-460.0,0.00017808,2]
[367837759,1750941060099,-460.0,0.00017808,2]
[367837760,1750941060108,-460.0,0.00017808,2]
[367837761,1750941060118,-460.0,0.00017808,2]
[367837762,1750941060127,-233.35,0.00017808,2]
[367837763,1750941060137,-2659.29,0.00017808,2]
[367837764,1750941060147,-460.0,0.00017808,2]
[367837765,1750941060157,-460.0,0.00017808,2]
[367837766,1750941060167,-2051.31,0.00017808,2]
[367837767,1750941060176,-581.91,0.00017808,2]
[367837768,1750941060186,-460.0,0.00017808,2]
[367837769,1750941060196,-479.83,0.00017808,2]
[367837770,1750941060206,-569.65,0.00017808,2]
[367837771,1750941060215,-460.0,0.00017808,2]
[367837772,1750941060224,-2032.0,0.00017825,5]
[367837773,1750941060233,-2034.0,0.00017825,5]
[367837774,1750941060243,-2032.0,0.00017825,5]
[367837775,1750941060252,-2032.0,0.00017825,5]
[367837776,1750941060262,-2032.0,0.00017825,5]
[367837777,1750941060272,-2032.0,0.00017825,5]
[367837778,1750941060281,-3000.0,0.0001785,2]
[367837779,1750941060290,-500.0,0.00017873,2]
[367837780,1750941060300,-500.0,0.00017873,2]
[367837781,1750941060309,-500.68364037,0.00017873,2]
[367837782,1750941060319,-500.0,0.00017873,2]
[367837783,1750941060328,-500.0,0.00017873,2]
[367837784,1750941060338,-395.5265441,0.00017873,2]
[367837785,1750941060348,-500.0,0.00017873,2]
[367837786,1750941060358,-500.0,0.00017873,2]
[367837787,1750941060367,-500.0,0.00017873,2]
[367837788,1750941060377,-500.22618135,0.00017873,2]
[367837789,1750941060386,-2000.0,0.00018,2]
[367837790,1750941060395,-135089.99088034,0.00018,2]
[367837791,1750941060405,-21954.82054918,0.00018,2]
[367837792,1750941060414,-29156.39682197,0.00018,2]
[367837793,1750941060424,-2764.78833449,0.00018003,2]
[367837794,1750941060434,-504.89735478,0.00018073,2]
[367837795,1750941060444,-500.0,0.00018073,2]
[367837796,1750941060454,-500.0,0.00018073,2]
[367837797,1750941060464,-500.0,0.00018073,2]
[367837798,1750941060473,-500.0,0.00018073,2]
[367837799,1750941060483,-500.0,0.00018073,2]
[367837800,1750941060493,-500.0,0.00018073,2]
[367837801,1750941060502,-460.0,0.00018082,2]
[367837802,1750941060512,-460.0,0.00018082,2]
[367837803,1750941060522,-460.0,0.00018082,2]
[367837804,1750941060532,-460.0,0.00018082,2]
[367837805,1750941060542,-460.0,0.00018082,2]
[367837806,1750941060551,-460.0,0.00018082,2]
[367837807,1750941060561,-460.0,0.00018082,2]
[367837808,1750941060570,-460.0,0.00018082,2]
[367837809,1750941060580,-460.0,0.00018082,2]
[367837810,1750941060590,-460.0,0.00018082,2]
[367837811,1750941060600,-460.0,0.00018082,2]
[367837812,1750941060611,-460.0,0.00018082,2]
[367837813,1750941060622,-460.0,0.00018082,2]
[367837814,1750941060634,-460.0,0.00018082,2]
[367837815,1750941060644,-460.0,0.00018082,2]
[367837816,1750941060654,-473.28,0.00018082,2]
[367837817,1750941060663,-460.0,0.00018082,2]
[367837818,1750941060672,-460.0,0.00018082,2]
[367837819,1750941060681,-460.0,0.00018082,2]
[367837820,1750941060692,-888.46,0.00018082,2]
[367837821,1750941060703,-791.24,0.00018082,2]
[367837822,1750941060712,-460.0,0.00018082,2]
[367837823,1750941060724,-460.0,0.00018082,2]
[367837824,1750941060732,-460.0,0.00018082,2]
[367837825,1750941060742,-807.51,0.00018082,2]
[367837826,1750941060751,-460.0,0.00018082,2]
[367837827,1750941060761,-460.0,0.00018082,2]
[367837828,1750941060770,-585.13603678,0.00018082,2]
[367837829,1750941060779,-460.0,0.00018082,2]
[367837830,1750941060789,-503.24,0.00018082,2]
[367837831,1750941060799,-460.0,0.00018082,2]
[367837832,1750941060808,-631.7,0.00018082,2]
[367837833,1750941060817,-460.0,0.00018082,2]
[367837834,1750941060827,-460.0,0.00018082,2]
[367837835,1750941060836,-742.62,0.00018082,2]
[367837836,1750941060846,-460.0,0.00018082,2]
[367837837,1750941060855,-460.0,0.00018082,2]
[367837838,1750941060864,-217.29,0.00018082,2]
[367837839,1750941060873,-542.68851706,0.00018082,2]
[367837840,1750941060882,-460.0,0.00018082,2]
[367837841,1750941060892,-460.0,0.00018082,2]
[367837842,1750941060901,-471.26,0.00018082,2]
[367837843,1750941060911,-460.0,0.00018082,2]
[367837844,1750941060920,-460.0,0.00018082,2]
[367837845,1750941060932,-268.94455598,0.00018082,2]
[367837846,1750941060942,-460.0,0.00018082,2]
[367837847,1750941060957,-460.0,0.00018082,2]
[367837848,1750941060968,-460.0,0.00018082,2]
[367837849,1750941060977,-460.0,0.00018082,2]
[367837850,1750941060986,-460.0,0.00018082,2]
[367837851,1750941060995,-460.0,0.00018082,2]
[367837852,1750941061004,-803.0,0.00018082,2]
[367837853,1750941061013,-460.0,0.00018082,2]
[367837854,1750941061023,-460.0,0.00018082,2]
[367837855,1750941061032,-460.0,0.00018082,2]
[367837856,1750941061041,-566.19,0.00018082,2]
[367837857,1750941061051,-460.0,0.00018082,2]
[367837858,1750941061060,-460.0,0.00018082,2]
[367837859,1750941061070,-460.0,0.00018082,2]
[367837860,1750941061079,-531.21,0.00018082,2]
[367837861,1750941061089,-460.0,0.00018082,2]
[367837862,1750941061098,-586.58,0.00018082,2]
[367837863,1750941061107,-267.26648522,0.00018082,2]
[367837864,1750941061116,-460.0,0.00018082,2]
[367837865,1750941061125,-460.0,0.00018082,2]
[367837866,1750941061135,-460.0,0.00018082,2]
[367837867,1750941061144,-460.0,0.00018082,2]
[367837868,1750941061152,-460.0,0.00018082,2]
[367837869,1750941061162,-1446.03,0.00018082,2]
[367837870,1750941061170,-1888.57,0.00018082,2]
[367837871,1750941061180,-460.0,0.00018082,2]
[367837872,1750941061189,-460.0,0.00018082,2]
[367837873,1750941061200,-460.0,0.00018082,2]
[367837874,1750941061209,-603.24,0.00018082,2]
[367837875,1750941061218,-2010.83,0.00018082,2]
[367837876,1750941061228,-460.0,0.00018082,2]
[367837877,1750941061237,-460.0,0.00018082,2]
[367837878,1750941061247,-460.0,0.00018082,2]
[367837879,1750941061257,-460.0,0.00018082,2]
[367837880,1750941061267,-706.02,0.00018082,2]
[367837881,1750941061276,-460.0,0.00018082,2]
[367837882,1750941061285,-460.0,0.00018082,2]
[367837883,1750941061294,-947.82,0.00018082,2]
[367837884,1750941061304,-225.74752613,0.00018082,2]
[367837885,1750941061313,-686.64,0.00018082,2]
[367837886,1750941061322,-528.25,0.00018082,2]
[367837887,1750941061331,-460.0,0.00018082,2]
[367837888,1750941061340,-460.0,0.00018082,2]
[367837889,1750941061349,-185.44424097,0.00018082,2]
[367837890,1750941061358,-460.0,0.00018082,2]
[367837891,1750941061367,-630.9,0.00018082,2]
[367837892,1750941061376,-4731.44,0.00018082,2]
[367837893,1750941061386,-464.51,0.00018082,2]
[367837894,1750941061395,-719.52,0.00018082,2]
[367837895,1750941061405,-460.0,0.00018082,2]
[367837896,1750941061414,-806.15,0.00018082,2]
[367837897,1750941061423,-589.94271838,0.00018082,2]
[367837898,1750941061432,-460.0,0.00018082,2]
[367837899,1750941061442,-548.98,0.00018082,2]
[367837900,1750941061452,-460.0,0.00018082,2]
[367837901,1750941061461,-460.0,0.00018082,2]
[367837902,1750941061470,-460.0,0.00018082,2]
[367837903,1750941061479,-460.0,0.00018082,2]
[367837904,1750941061489,-5800.83,0.00018082,2]
[367837905,1750941061498,-692.44,0.00018082,2]
[367837906,1750941061507,-866.92,0.00018082,2]
[367837907,1750941061516,-460.0,0.00018082,2]
[367837908,1750941061525,-460.0,0.00018082,2]
[367837909,1750941061534,-2909.6,0.00018082,2]
[367837910,1750941061543,-517.95,0.00018082,2]
[367837911,1750941061552,-2686.11,0.00018082,2]
[367837912,1750941061562,-1363.41,0.00018082,2]
[367837913,1750941061571,-3716.07,0.00018082,2]
[367837914,1750941061579,-1046.42,0.00018082,2]
[367837915,1750941061588,-532.34,0.00018082,2]
[367837916,1750941061598,-790.12,0.00018082,2]
[367837917,1750941061607,-1720.1,0.00018082,2]
[367837918,1750941061616,-607.72,0.00018082,2]
[367837919,1750941061626,-460.0,0.00018082,2]
[367837920,1750941061638,-738.59,0.00018082,2]
[367837921,1750941061647,-683.98,0.00018082,2]
[367837922,1750941061656,-460.0,0.00018082,2]
[367837923,1750941061665,-460.0,0.00018082,2]
[367837924,1750941061675,-460.0,0.00018082,2]
[367837925,1750941061683,-460.0,0.00018082,2]
[367837926,1750941061693,-533.75,0.00018082,2]
[367837927,1750941061705,-1868.49,0.00018082,2]
[367837928,1750941061715,-1752.99,0.00018082,2]
[367837929,1750941061724,-460.0,0.00018082,2]
[367837930,1750941061733,-761.74,0.00018082,2]
[367837931,1750941061742,-620.54,0.00018082,2]
[367837932,1750941061751,-460.0,0.00018082,2]
[367837933,1750941061760,-570.25,0.00018082,2]
[367837934,1750941061770,-460.0,0.00018082,2]
[367837935,1750941061779,-460.0,0.00018082,2]
[367837936,1750941061788,-1048.74,0.00018082,2]
[367837937,1750941061798,-890.8,0.00018082,2]
[367837938,1750941061808,-2024.11,0.00018082,2]
[367837939,1750941061817,-641.16,0.00018082,2]
[367837940,1750941061826,-460.0,0.00018082,2]
[367837941,1750941061837,-753.25,0.00018082,2]
[367837942,1750941061846,-560.58,0.00018082,2]
[367837943,1750941061857,-1034.46,0.00018082,2]
[367837944,1750941061867,-510.97,0.00018082,2]
[367837945,1750941061877,-685.54,0.00018082,2]
[367837946,1750941061886,-594.59,0.00018082,2]
[367837947,1750941061898,-501.72,0.00018082,2]
[367837948,1750941061908,-743.6,0.00018082,2]
[367837949,1750941061917,-2173.59,0.00018082,2]
[367837950,1750941061927,-2150.76,0.00018082,2]
[367837951,1750941062067,-603.43,0.00018082,2]
[367837952,1750941062077,-460.0,0.00018082,2]
[367837953,1750941062086,-460.0,0.00018082,2]
[367837954,1750941062096,-460.0,0.00018082,2]
[367837955,1750941062105,-594.3,0.00018082,2]
[367837956,1750941062114,-1345.47,0.00018082,2]
[367837957,1750941062124,-721.39,0.00018082,2]
[367837958,1750941062133,-460.0,0.00018082,2]
[367837959,1750941062143,-460.0,0.00018082,2]
[367837960,1750941062152,-1390.16,0.00018082,2]
[367837961,1750941062161,-885.25,0.00018082,2]
[367837962,1750941062171,-460.0,0.00018082,2]
[367837963,1750941062180,-460.0,0.00018082,2]
[367837964,1750941062189,-460.0,0.00018082,2]
[367837965,1750941062199,-460.0,0.00018082,2]
[367837966,1750941062208,-460.0,0.00018082,2]
[367837967,1750941062217,-460.0,0.00018082,2]
[367837968,1750941062227,-2659.29,0.00018082,2]
[367837969,1750941062236,-460.0,0.00018082,2]
[367837970,1750941062246,-460.0,0.00018082,2]
[367837971,1750941062256,-2051.31,0.00018082,2]
[367837972,1750941062266,-581.91,0.00018082,2]
[367837973,1750941062276,-460.0,0.00018082,2]
[367837974,1750941062285,-479.83,0.00018082,2]
[367837975,1750941062294,-569.65,0.00018082,2]
[367837976,1750941062304,-460.0,0.00018082,2]
[367837977,1750941062314,-166.6693084,0.00018082,2]
[367837978,1750941062324,-1000.0,0.00018121,2]
[367837979,1750941062334,-1000.0,0.00018121,2]
[367837980,1750941062343,-503.61778586,0.00018121,2]
[367837981,1750941062352,-580.8694489,0.00018121,2]
[367837982,1750941062361,-1000.0,0.00018121,2]
[367837983,1750941062371,-500.0,0.00018121,2]
[367837984,1750941062381,-1000.0,0.00018121,2]
[367837985,1750941062390,-1000.0,0.00018121,2]
[367837986,1750941062400,-500.0,0.00018121,2]
[367837987,1750941062412,-482.34571679,0.00018139,2]
[367837988,1750941062422,-504.18410988,0.00018171,2]
[367837989,1750941062431,-502.36847634,0.00018181,2]
[367837990,1750941062442,-151.0,0.000182,2]
[367837991,1750941062454,-2764.78833449,0.00018279,2]
[367837992,1750941062463,-501.13814084,0.000183,2]
[367837993,1750941062473,-1000.0,0.000183,2]
[367837994,1750941062482,-1000.0,0.000183,2]
[367837995,1750941062491,-331.18375273,0.000183,2]
[367837996,1750941062501,-1000.0,0.000183,2]
[367837997,1750941062511,-460.0,0.00018356,2]
[367837998,1750941062521,-494.3980349,0.00018356,2]
[367837999,1750941062531,-460.0,0.00018356,2]
[367838000,1750941062541,-460.0,0.00018356,2]
[367838001,1750941062552,-460.0,0.00018356,2]
[367838002,1750941062562,-460.0,0.00018356,2]
[367838003,1750941062571,-460.0,0.00018356,2]
[367838004,1750941062581,-460.0,0.00018356,2]
[367838005,1750941062590,-460.0,0.00018356,2]
[367838006,1750941062600,-460.0,0.00018356,2]
[367838007,1750941062611,-460.0,0.00018356,2]
[367838008,1750941062621,-460.0,0.00018356,2]
[367838009,1750941062631,-460.0,0.00018356,2]
[367838010,1750941062645,-460.0,0.00018356,2]
[367838011,1750941062655,-473.28,0.00018356,2]
[367838012,1750941062664,-460.0,0.00018356,2]
[367838013,1750941062675,-460.0,0.00018356,2]
[367838014,1750941062685,-460.0,0.00018356,2]
[367838015,1750941062694,-888.46,0.00018356,2]
[367838016,1750941062704,-791.24,0.00018356,2]
[367838017,1750941062713,-460.0,0.00018356,2]
[367838018,1750941062723,-460.0,0.00018356,2]
[367838019,1750941062734,-460.0,0.00018356,2]
[367838020,1750941062745,-807.51,0.00018356,2]
[367838021,1750941062756,-460.0,0.00018356,2]
[367838022,1750941062765,-460.0,0.00018356,2]
[367838023,1750941062774,-503.24,0.00018356,2]
[367838024,1750941062783,-460.0,0.00018356,2]
[367838025,1750941062794,-631.7,0.00018356,2]
[367838026,1750941062803,-460.0,0.00018356,2]
[367838027,1750941062812,-460.0,0.00018356,2]
[367838028,1750941062822,-742.62,0.00018356,2]
[367838029,1750941062832,-460.0,0.00018356,2]
[367838030,1750941062842,-503.39591802,0.00018356,2]
[367838031,1750941062852,-460.0,0.00018356,2]
[367838032,1750941062861,-460.0,0.00018356,2]
[367838033,1750941062871,-471.26,0.00018356,2]
[367838034,1750941062880,-460.0,0.00018356,2]
[367838035,1750941062890,-460.0,0.00018356,2]
[367838036,1750941062899,-460.0,0.00018356,2]
[367838037,1750941062908,-460.0,0.00018356,2]
[367838038,1750941062918,-460.0,0.00018356,2]
[367838039,1750941062927,-460.0,0.00018356,2]
[367838040,1750941062937,-460.0,0.00018356,2]
[367838041,1750941062946,-803.0,0.00018356,2]
[367838042,1750941062956,-460.0,0.00018356,2]
[367838043,1750941062965,-460.0,0.00018356,2]
[367838044,1750941062975,-460.0,0.00018356,2]
[367838045,1750941062984,-566.19,0.00018356,2]
[367838046,1750941062994,-460.0,0.00018356,2]
[367838047,1750941063003,-460.0,0.00018356,2]
[367838048,1750941063012,-531.21,0.00018356,2]
[367838049,1750941063021,-460.0,0.00018356,2]
[367838050,1750941063030,-586.58,0.00018356,2]
[367838051,1750941063040,-460.0,0.00018356,2]
[367838052,1750941063050,-460.0,0.00018356,2]
[367838053,1750941063060,-460.0,0.00018356,2]
[367838054,1750941063070,-460.0,0.00018356,2]
[367838055,1750941063079,-460.0,0.00018356,2]
[367838056,1750941063088,-1446.03,0.00018356,2]
[367838057,1750941063098,-1888.57,0.00018356,2]
[367838058,1750941063108,-460.0,0.00018356,2]
[367838059,1750941063117,-460.0,0.00018356,2]
[367838060,1750941063128,-460.0,0.00018356,2]
[367838061,1750941063139,-2010.83,0.00018356,2]
[367838062,1750941063148,-460.0,0.00018356,2]
[367838063,1750941063158,-460.0,0.00018356,2]
[367838064,1750941063168,-460.0,0.00018356,2]
[367838065,1750941063178,-460.0,0.00018356,2]
[367838066,1750941063187,-706.02,0.00018356,2]
[367838067,1750941063199,-460.0,0.00018356,2]
[367838068,1750941063208,-460.0,0.00018356,2]
[367838069,1750941063218,-947.82,0.00018356,2]
[367838070,1750941063228,-686.64,0.00018356,2]
[367838071,1750941063238,-528.25,0.00018356,2]
[367838072,1750941063248,-460.0,0.00018356,2]
[367838073,1750941063257,-460.0,0.00018356,2]
[367838074,1750941063267,-274.25047259,0.00018356,2]
[367838075,1750941063277,-630.9,0.00018356,2]
[367838076,1750941063286,-4731.44,0.00018356,2]
[367838077,1750941063296,-464.51,0.00018356,2]
[367838078,1750941063306,-719.52,0.00018356,2]
[367838079,1750941063315,-460.0,0.00018356,2]
[367838080,1750941063325,-806.15,0.00018356,2]
[367838081,1750941063335,-234.95442889,0.00018356,2]
[367838082,1750941063345,-548.98,0.00018356,2]
[367838083,1750941063355,-460.0,0.00018356,2]
[367838084,1750941063365,-460.0,0.00018356,2]
[367838085,1750941063376,-460.0,0.00018356,2]
[367838086,1750941063385,-460.0,0.00018356,2]
[367838087,1750941063395,-5800.83,0.00018356,2]
[367838088,1750941063406,-692.44,0.00018356,2]
[367838089,1750941063415,-866.92,0.00018356,2]
[367838090,1750941063426,-460.0,0.00018356,2]
[367838091,1750941063436,-460.0,0.00018356,2]
[367838092,1750941063446,-2909.6,0.00018356,2]
[367838093,1750941063457,-517.95,0.00018356,2]
[367838094,1750941063468,-2686.11,0.00018356,2]
[367838095,1750941063479,-1363.41,0.00018356,2]
[367838096,1750941063489,-3716.07,0.00018356,2]
[367838097,1750941063499,-1046.42,0.00018356,2]
[367838098,1750941063509,-532.34,0.00018356,2]
[367838099,1750941063519,-790.12,0.00018356,2]
[367838100,1750941063529,-1720.1,0.00018356,2]
[367838101,1750941063539,-607.72,0.00018356,2]
[367838102,1750941063549,-460.0,0.00018356,2]
[367838103,1750941063559,-738.59,0.00018356,2]
[367838104,1750941063569,-683.98,0.00018356,2]
[367838105,1750941063579,-460.0,0.00018356,2]
[367838106,1750941063588,-460.0,0.00018356,2]
[367838107,1750941063598,-460.0,0.00018356,2]
[367838108,1750941063607,-460.0,0.00018356,2]
[367838109,1750941063617,-533.75,0.00018356,2]
[367838110,1750941063627,-1868.49,0.00018356,2]
[367838111,1750941063639,-1752.99,0.00018356,2]
[367838112,1750941063649,-405.36917785,0.00018356,2]
[367838113,1750941063658,-761.74,0.00018356,2]
[367838114,1750941063668,-620.54,0.00018356,2]
[367838115,1750941063679,-460.0,0.00018356,2]
[367838116,1750941063696,-570.25,0.00018356,2]
[367838117,1750941063716,-460.0,0.00018356,2]
[367838118,1750941063731,-460.0,0.00018356,2]
[367838119,1750941063742,-1048.74,0.00018356,2]
[367838120,1750941063751,-890.8,0.00018356,2]
[367838121,1750941063761,-2024.11,0.00018356,2]
[367838122,1750941063770,-641.16,0.00018356,2]
[367838123,1750941063780,-460.0,0.00018356,2]
[367838124,1750941063790,-753.25,0.00018356,2]
[367838125,1750941063799,-560.58,0.00018356,2]